bitfinex-derivatives/quotes_SOLF0:USTF0_20250803
["timestamp","ask_amount","ask_price","bid_price","bid_amount"]
[1754229708034,6.1929,161.48,161.46,3.31]
[1754229708536,3.51,161.47,161.46,3.31]
[1754229709732,9.7032,161.47,161.46,3.31]
[1754229710740,9.7035,161.46,161.45,112.98]
[1754229715347,3.51,161.45,161.42,112.98]
[1754229715746,6.1947,161.43,161.42,112.98]
[1754229716044,9.7047,161.43,161.42,112.98]
[1754229717345,6.1953,161.42,161.39,3.31]
[1754229717537,3.51,161.41,161.39,116.29]
[1754229717946,3.51,161.4,161.39,116.29]
[1754229719850,6.1953,161.42,161.39,122.4862]
[1754229720050,9.7053,161.42,161.4,3.31]
[1754229720347,3.51,161.41,161.39,112.98]
[1754229720843,3.51,161.41,161.4,3.31]
[1754229722246,9.7055,161.41,161.4,3.31]
[1754229722443,3.51,161.41,161.39,112.98]
[1754229722649,3.51,161.4,161.37,3.31]
[1754229722850,3.51,161.4,161.38,113.0]
[1754229723047,9.7062,161.39,161.38,113.0]
[1754229724846,6.1974,161.36,161.35,416.14]
[1754229725053,3.51,161.35,161.32,3.31]
[1754229725251,3.51,161.34,161.33,116.31]
[1754229725850,6.27176399,161.41,161.33,116.31]
[1754229726155,3.51,161.34,161.3,3.31]
[1754229726350,3.51,161.34,161.31,116.31]
[1754229726548,6.1988,161.33,161.31,116.31]
[1754229726751,3.51,161.32,161.31,116.31]
[1754229727055,9.7089,161.32,161.31,116.31]
[1754229727352,9.7089,161.32,161.31,113.0]
[1754229729866,3.51,161.3,161.27,3.31]
[1754229730057,3.51,161.3,161.29,113.02]
[1754229730454,9.7097,161.3,161.29,113.02]
[1754229730656,3.51,161.3,161.27,3.31]
[1754229730862,3.51,161.3,161.28,113.06]
[1754229731360,6.2002,161.29,161.28,113.06]
[1754229731555,9.7102,161.29,161.28,113.06]
[1754229732359,9.7102,161.29,161.23,6.2023]
[1754229732360,9.7112,161.26,161.2,6.27176399]
[1754229732663,3.51,161.28,161.23,3.31]
[1754229732954,3.51,161.24,161.22,116.43]
[1754229733355,3.51,161.23,161.22,116.43]
[1754229734761,6.2024,161.23,161.22,113.12]
[1754229734962,9.5524,161.23,161.22,113.12]
[1754229735349,6.203,161.22,161.2,113.16]
[1754229735554,3.35,161.21,161.2,113.16]
[1754229736156,3.35,161.21,161.2,116.44]
[1754229737956,3.35,161.24,161.21,3.28]
[1754229738353,6.27176399,161.28,161.21,3.28]
[1754229738553,3.35,161.23,161.21,3.28]
[1754229738764,3.35,161.23,161.2,113.16]
[1754229738964,3.35,161.27,161.2,116.44]
[1754229739266,3.35,161.25,161.21,3.28]
[1754229739463,6.2023,161.24,161.21,3.28]
[1754229739669,3.35,161.22,161.21,3.28]
[1754229740360,6.27176399,161.26,161.21,3.28]
[1754229740361,3.35,161.24,161.21,3.28]
[1754229740566,3.35,161.23,161.22,3.28]
[1754229743369,9.5526,161.23,161.2,113.16]
[1754229743562,6.27176399,161.28,161.2,113.16]
[1754229743563,3.35,161.22,161.2,116.44]
[1754229744071,9.553,161.22,161.2,113.16]
[1754229744265,3.35,161.21,161.2,113.16]
[1754229744662,3.35,161.21,161.2,116.44]
[1754229745869,15.7446,161.37,161.2,113.16]
[1754229746069,3.35,161.22,161.21,3.28]
[1754229746566,6.27176399,161.27,161.21,3.28]
[1754229746764,3.35,161.27,161.22,6.27176399]
[1754229746969,3.35,161.27,161.24,3.28]
[1754229747165,3.35,161.31,161.24,3.28]
[1754229747370,3.35,161.31,161.25,3.28]
[1754229747571,3.35,161.31,161.26,113.4]
[1754229747767,3.35,161.31,161.26,116.68]
[1754229748073,6.27176399,161.31,161.26,113.4]
[1754229748270,3.35,161.3,161.26,113.4]
[1754229748467,3.35,161.27,161.26,113.4]
[1754229748670,3.35,161.27,161.26,116.68]
[1754229748867,3.35,161.27,161.26,113.4]
[1754229749071,9.5508,161.27,161.26,113.4]
[1754229750771,6.2006,161.28,161.27,3.28]
[1754229750969,9.5506,161.28,161.27,3.28]
[1754229751776,6.2008,161.27,161.26,113.4]
[1754229751969,9.5508,161.27,161.26,113.4]
[1754229752365,9.5508,161.27,161.19,6.27176399]
[1754229752366,3.35,161.27,161.19,6.27176399]
[1754229752573,6.27176399,161.26,161.2,3.28]
[1754229752876,9.5531,161.21,161.2,113.44]
[1754229753779,6.27176399,161.3,161.16,3.28]
[1754229753780,3.35,161.19,161.16,3.28]
[1754229753973,6.27176399,161.22,161.17,113.46]
[1754229754174,3.35,161.18,161.17,116.74]
[1754229754373,3.35,161.2,161.18,3.28]
[1754229754578,3.35,161.19,161.18,3.28]
[1754229754774,9.5542,161.19,161.18,3.28]
[1754229756787,9.5543,161.18,161.17,113.46]
[1754229760793,6.2055,161.15,161.14,3.28]
[1754229760975,6.2055,161.15,161.14,116.76]
[1754229760976,9.5555,161.15,161.14,116.76]
[1754229762283,3.35,161.15,161.14,116.76]
[1754229763785,9.5555,161.15,161.14,113.48]
[1754229764688,3.3,161.16,161.14,113.48]
[1754229764990,3.3,161.23,161.15,3.3]
[1754229765287,3.3,161.23,161.17,3.3]
[1754229765487,3.3,161.22,161.19,3.3]
[1754229765991,3.3,161.24,161.2,3.3]
[1754229766191,3.3,161.24,161.19,3.3]
[1754229766791,9.503,161.22,161.19,3.3]
[1754229766990,9.503,161.22,161.18,119.81176399]
[1754229766991,6.27176399,161.28,161.2,6.27176399]
[1754229767194,3.3,161.27,161.21,3.3]
[1754229767382,3.3,161.27,161.23,3.3]
[1754229767688,9.5024,161.23,161.22,113.6]
[1754229767885,3.3,161.23,161.19,116.94]
[1754229768087,3.3,161.23,161.19,113.64]
[1754229768288,9.5035,161.2,161.19,113.64]
[1754229770087,9.5035,161.2,161.19,116.94]
[1754229770293,6.2035,161.2,161.19,116.94]
[1754229770592,9.5031,161.22,161.19,113.64]
[1754229770793,3.3,161.22,161.21,3.3]
[1754229771195,9.5028,161.22,161.21,3.3]
[1754229771891,6.2035,161.2,161.19,113.64]
[1754229772194,6.2035,161.2,161.19,116.94]
[1754229772695,9.5035,161.2,161.19,116.94]
[1754229773194,6.2032,161.21,161.19,116.94]
[1754229773488,6.2032,161.21,161.2,3.3]
[1754229773489,9.5032,161.21,161.2,3.3]
[1754229773689,6.2026,161.23,161.19,113.64]
[1754229773998,3.3,161.29,161.22,6.27176399]
[1754229774295,3.3,161.29,161.25,3.3]
[1754229774989,3.3,161.27,161.25,3.3]
[1754229775184,3.3,161.26,161.25,3.3]
[1754229776192,9.5012,161.26,161.25,3.3]
[1754229779088,3.3,161.26,161.25,3.3]
[1754229779896,6.2006,161.28,161.25,3.3]
[1754229780092,6.89553859,161.35,161.25,3.3]
[1754229780291,6.89553859,161.36,161.25,3.3]
[1754229780493,3.3,161.34,161.26,6.27176399]
[1754229780797,3.3,161.34,161.28,3.3]
[1754229780996,6.1995,161.31,161.28,3.3]
[1754229781197,3.3,161.3,161.29,3.3]
[1754229782194,9.4997,161.3,161.29,3.3]
[1754229782902,6.1994,161.31,161.29,3.3]
[1754229783106,3.3,161.31,161.3,3.3]
[1754229783399,3.3,161.3,161.28,3.3]
[1754229783600,3.3,161.3,161.29,3.3]
[1754229784403,6.27176399,161.31,161.24,3.3]
[1754229784598,3.3,161.3,161.25,113.88]
[1754229784899,3.3,161.28,161.26,3.3]
[1754229785095,3.3,161.27,161.26,3.3]
[1754229787002,3.3,161.27,161.25,113.88]
[1754229787200,3.3,161.26,161.25,117.18]
[1754229790098,9.5012,161.26,161.25,117.18]
[1754229791202,3.3,161.26,161.25,117.18]
[1754229798512,9.5012,161.26,161.25,113.88]
[1754229798703,9.7312,161.26,161.25,113.88]
[1754229798904,3.53,161.26,161.23,113.68]
[1754229800316,9.7322,161.24,161.23,113.68]
[1754229801216,9.7322,161.24,161.23,116.9]
[1754229802813,3.53,161.24,161.23,116.9]
[1754229803415,9.732,161.24,161.23,116.9]
[1754229804111,9.732,161.24,161.23,113.68]
[1754229805415,6.2034,161.21,161.19,3.22]
[1754229805615,3.53,161.2,161.19,3.22]
[1754229805814,3.53,161.2,161.19,116.92]
[1754229806813,9.7335,161.2,161.19,116.92]
[1754229808616,3.53,161.2,161.19,116.92]
[1754229809426,9.7335,161.2,161.19,116.92]
[1754229809607,3.53,161.2,161.19,116.92]
[1754229809810,6.27176399,161.27,161.19,116.92]
[1754229810119,6.203,161.22,161.2,3.22]
[1754229811113,6.2031,161.21,161.2,3.22]
[1754229811812,9.7331,161.21,161.2,3.22]
[1754229814814,9.7329,161.22,161.2,3.22]
[1754229816317,6.2025,161.23,161.21,3.22]
[1754229816513,9.7325,161.23,161.22,113.58]
[1754229816717,9.7325,161.23,161.22,116.8]
[1754229821120,3.53,161.26,161.22,113.58]
[1754229821321,6.89553859,161.31,161.23,3.22]
[1754229821322,3.53,161.3,161.23,3.22]
[1754229821820,6.2015,161.26,161.24,3.22]
[1754229822015,9.7315,161.26,161.25,116.72]
[1754229822211,6.2008,161.27,161.25,116.72]
[1754229822411,3.53,161.28,161.26,3.22]
[1754229822811,9.7307,161.28,161.26,3.22]
[1754229823015,3.53,161.3,161.27,6.27176399]
[1754229823217,3.53,161.3,161.29,3.22]
[1754229823418,9.7298,161.3,161.29,3.22]
[1754229823622,6.1998,161.3,161.29,3.22]
[1754229823922,3.49,161.31,161.29,3.22]
[1754229824120,6.1993,161.32,161.29,6.27176399]
[1754229824326,6.1993,161.32,161.3,3.5]
[1754229824624,6.1993,161.32,161.29,6.27176399]
[1754229824625,9.6893,161.32,161.31,117.1]
[1754229825118,3.49,161.36,161.32,3.5]
[1754229825515,6.1986,161.33,161.32,3.5]
[1754229825717,9.6886,161.33,161.32,3.5]
[1754229831220,6.1986,161.33,161.32,3.5]
[1754229831828,9.6886,161.33,161.32,3.5]
[1754229835531,3.49,161.33,161.32,3.5]
[1754229843133,3.49,161.33,161.31,113.6]
[1754229843336,3.49,161.33,161.31,113.3]
[1754229843543,6.1989,161.32,161.31,113.3]
[1754229843731,3.49,161.32,161.29,113.32]
[1754229843926,6.27176399,161.35,161.29,116.82]
[1754229844136,6.1992,161.32,161.29,116.82]
[1754229844340,3.49,161.36,161.3,3.5]
[1754229844840,3.49,161.36,161.31,3.5]
[1754229845040,3.49,161.36,161.33,3.5]
[1754229845240,3.49,161.36,161.34,3.5]
[1754229846441,6.1976,161.36,161.34,3.5]
[1754229846740,3.49,161.35,161.34,3.5]
[1754229847844,9.6878,161.35,161.34,3.5]
[1754229848037,6.1978,161.35,161.34,3.5]
[1754229848341,9.6878,161.35,161.34,3.5]
[1754229848732,3.49,161.35,161.34,3.5]
[1754229851642,9.6878,161.35,161.34,3.5]
[1754229852130,3.49,161.35,161.34,3.5]
[1754229853334,9.6878,161.35,161.34,3.5]
[1754229853532,3.5,161.39,161.32,116.67]
[1754229853732,3.5,161.35,161.32,113.38]
[1754229854542,6.1993,161.31,161.3,3.29]
[1754229854745,9.6993,161.31,161.3,3.29]
[1754229855144,9.6997,161.3,161.29,116.59]
[1754229855642,9.6997,161.3,161.29,113.3]
[1754229856342,9.6997,161.3,161.29,116.59]
[1754229856952,6.27176399,161.32,161.23,416.52]
[1754229857141,3.5,161.27,161.24,3.29]
[1754229857345,3.5,161.27,161.25,3.29]
[1754229857747,9.7009,161.27,161.25,3.29]
[1754229857938,3.5,161.26,161.25,3.29]
[1754229858247,3.5,161.28,161.25,3.29]
[1754229858549,9.7003,161.29,161.25,3.29]
[1754229859052,3.5,161.29,161.25,3.29]
[1754229860541,9.6994,161.31,161.26,3.29]
[1754229860747,9.6994,161.31,161.27,113.48]
[1754229861051,3.5,161.3,161.28,3.29]
[1754229861552,6.1997,161.3,161.28,3.29]
[1754229862052,6.27176399,161.34,161.28,3.29]
[1754229862349,3.5,161.31,161.28,3.29]
[1754229863354,3.5,161.3,161.28,3.29]
[1754229866844,3.5,161.34,161.28,3.29]
[1754229867455,3.5,161.3,161.28,3.29]
[1754229868052,9.6998,161.3,161.28,3.29]
[1754229868254,3.5,161.29,161.28,3.29]
[1754229868553,3.5,161.29,161.27,113.48]
[1754229868751,3.5,161.29,161.27,116.77]
[1754229869643,9.7003,161.29,161.27,116.77]
[1754229869951,3.5,161.28,161.27,116.77]
[1754229877261,6.1998,161.3,161.27,113.48]
[1754229877461,3.5,161.29,161.28,3.29]
[1754229879068,3.5,161.3,161.28,3.29]
[1754229882563,6.1994,161.31,161.28,3.29]
[1754229882766,3.5,161.29,161.28,3.29]
[1754229886065,3.5,161.34,161.28,3.29]
[1754229886267,3.5,161.34,161.31,3.32]
[1754229886468,3.5,161.34,161.32,3.32]
[1754229886673,3.5,161.34,161.33,4.01496362]
[1754229886862,3.5,161.34,161.33,7.33496362]
[1754229887065,6.1975,161.36,161.33,7.33496362]
[1754229887270,3.5,161.36,161.35,4.01496362]
[1754229887477,3.5,161.36,161.35,7.33496362]
[1754229888764,3.5,161.36,161.35,3.32]
[1754229890975,3.5,161.35,161.34,116.66]
[1754229892480,3.5,161.35,161.31,113.32]
[1754229892771,6.1985,161.33,161.31,116.64]
[1754229892969,3.5,161.35,161.31,113.32]
[1754229893568,3.5,161.35,161.31,116.64]
[1754229893770,3.5,161.35,161.32,3.32]
[1754229894171,9.6985,161.34,161.32,3.32]
[1754229895575,3.5,161.33,161.32,3.32]
[1754229897381,9.6985,161.33,161.32,3.32]
[1754229897786,3.5,161.33,161.31,113.32]
[1754229897985,3.5,161.33,161.31,116.64]
[1754229898381,3.5,161.33,161.31,113.32]
[1754229898583,9.6985,161.33,161.32,3.32]
[1754229898783,3.5,161.33,161.32,3.32]
[1754229899684,9.6983,161.34,161.32,3.32]
[1754229900184,3.5,161.33,161.31,113.32]
[1754229900687,6.1989,161.32,161.31,113.32]
[1754229900881,9.6989,161.32,161.31,113.32]
[1754229901885,9.6989,161.32,161.31,116.64]
[1754229902185,3.5,161.32,161.31,116.64]
[1754229902979,3.5,161.34,161.32,3.32]
[1754229903177,3.5,161.38,161.32,3.32]
[1754229903790,9.698,161.35,161.32,3.32]
[1754229903986,3.5,161.35,161.32,3.32]
[1754229904190,6.27273188,161.39,161.32,3.32]
[1754229904384,3.5,161.36,161.32,9.5186]
[1754229904685,3.5,161.37,161.33,3.32]
[1754229904888,3.5,161.37,161.35,3.32]
[1754229905085,9.6971,161.37,161.35,3.32]
[1754229905484,9.6974,161.36,161.35,3.32]
[1754229906290,3.5,161.36,161.35,3.32]
[1754229906478,6.1971,161.37,161.35,3.32]
[1754229906681,3.5,161.37,161.35,3.32]
[1754229910493,3.5,161.41,161.36,3.32]
[1754229910901,3.5,161.41,161.38,3.32]
[1754229911298,6.1961,161.4,161.38,3.32]
[1754229911506,3.5,161.39,161.38,3.32]
[1754229913405,9.6962,161.39,161.38,3.32]
[1754229918004,3.5,161.39,161.38,3.32]
[1754229918205,3.46,161.42,161.38,3.32]
[1754229918512,3.46,161.46,161.39,3.28]
[1754229918809,3.46,161.46,161.41,3.28]
[1754229919200,3.46,161.43,161.41,3.28]
[1754229920001,6.1944,161.44,161.42,3.28]
[1754229920302,3.46,161.44,161.42,3.28]
[1754229920805,6.194,161.45,161.42,3.28]
[1754229921005,9.654,161.45,161.42,3.28]
[1754229921201,3.46,161.47,161.42,6.27273188]
[1754229921503,3.46,161.46,161.43,3.28]
[1754229921809,3.46,161.46,161.45,3.28]
[1754229922307,9.6539,161.45,161.38,6.27273188]
[1754229922504,3.46,161.45,161.41,116.48]
[1754229922704,3.46,161.45,161.42,3.28]
[1754229922910,3.46,161.45,161.41,113.2]
[1754229923411,3.46,161.45,161.41,116.48]
[1754229923808,6.1951,161.42,161.41,113.2]
[1754229924007,9.6551,161.42,161.41,113.2]
[1754229924409,9.6551,161.42,161.41,116.48]
[1754229931013,3.46,161.39,161.37,3.28]
[1754229931212,3.46,161.39,161.37,116.46]
[1754229931407,3.46,161.39,161.38,3.28]
[1754229931807,6.1961,161.4,161.38,3.28]
[1754229932006,9.6561,161.4,161.38,3.28]
[1754229932213,6.1961,161.4,161.39,3.28]
[1754229932611,9.6561,161.4,161.39,3.28]
[1754229932817,6.1966,161.39,161.38,3.28]
[1754229933019,6.27273188,161.42,161.35,113.18]
[1754229933314,3.46,161.37,161.35,113.18]
[1754229933822,3.46,161.37,161.36,3.28]
[1754229934212,6.1969,161.38,161.36,3.28]
[1754229934415,9.6569,161.38,161.36,3.28]
[1754229935214,6.1963,161.39,161.36,3.28]
[1754229935420,3.46,161.4,161.36,3.28]
[1754229935616,3.46,161.41,161.36,3.28]
[1754229935917,9.6567,161.38,161.36,3.28]
[1754229936419,9.657,161.37,161.36,3.28]
[1754229938214,3.46,161.37,161.36,3.28]
[1754229941320,9.6567,161.38,161.36,3.28]
[1754229943125,6.1967,161.38,161.36,3.28]
[1754229943323,3.46,161.37,161.36,3.28]
[1754229947223,6.1964,161.39,161.36,3.28]
[1754229947527,3.24,161.38,161.36,3.28]
[1754229949126,3.24,161.43,161.37,3.5]
[1754229949326,3.24,161.43,161.39,3.5]
[1754229949520,6.27273188,161.46,161.39,3.5]
[1754229949730,3.24,161.45,161.39,3.5]
[1754229950833,6.1952,161.42,161.39,3.5]
[1754229951034,3.24,161.41,161.39,3.5]
[1754229951831,6.27273188,161.42,161.35,3.5]
[1754229952129,3.24,161.41,161.37,3.5]
[1754229952634,3.24,161.38,161.37,3.5]
[1754229953134,9.4366,161.38,161.37,3.5]
[1754229953629,3.24,161.38,161.37,3.5]
[1754229954737,9.436,161.4,161.37,3.5]
[1754229955525,3.24,161.43,161.37,6.27273188]
[1754229955731,3.24,161.42,161.38,3.5]
[1754229958240,3.24,161.42,161.39,6.1962]
[1754229958435,3.24,161.42,161.41,3.5]
[1754229958836,6.1947,161.43,161.41,3.5]
[1754229959033,9.4344,161.44,161.41,3.5]
[1754229959834,3.24,161.43,161.41,3.5]
[1754229960736,3.24,161.45,161.39,116.68]
[1754229961339,3.24,161.41,161.4,3.5]
[1754229961742,3.24,161.45,161.4,3.5]
[1754229961937,6.1948,161.43,161.4,3.5]
[1754229962241,9.4348,161.43,161.4,3.5]
[1754229962445,6.1948,161.43,161.4,3.5]
[1754229962637,3.24,161.43,161.4,3.5]
[1754229962837,3.24,161.42,161.4,3.5]
[1754229963843,9.4346,161.44,161.4,3.5]
[1754229964045,3.24,161.43,161.4,3.5]
[1754229966344,9.4347,161.43,161.4,3.5]
[1754229966544,3.24,161.42,161.4,3.5]
[1754229967434,3.24,161.42,161.41,3.5]
[1754229970545,6.27273188,161.46,161.39,113.18]
[1754229970739,3.24,161.45,161.39,113.18]
[1754229971143,3.24,161.4,161.39,116.68]
[1754229971333,3.24,161.4,161.39,113.18]
[1754229971536,3.24,161.4,161.37,113.16]
[1754229971941,9.4369,161.38,161.37,113.16]
[1754229974849,6.1977,161.36,161.34,116.7]
[1754229975046,3.28,161.35,161.34,116.7]
[1754229978549,6.1967,161.38,161.35,3.52]
[1754229978750,9.4767,161.38,161.35,3.52]
[1754229979451,3.28,161.38,161.35,9.7177]
[1754229979750,3.28,161.38,161.36,3.52]
[1754229979941,3.28,161.38,161.37,116.7]
[1754229980342,3.28,161.4,161.38,3.52]
[1754229980849,6.27273188,161.44,161.37,113.18]
[1754229981050,3.28,161.41,161.37,113.18]
[1754229981555,9.4766,161.38,161.37,113.18]
[1754229985248,9.4766,161.38,161.37,116.7]
[1754229985453,6.1963,161.39,161.37,113.18]
[1754229985660,6.27273188,161.44,161.38,3.52]
[1754229985847,3.28,161.4,161.38,3.52]
[1754229988052,3.28,161.4,161.37,125.64943188]
[1754229988053,6.27273188,161.43,161.37,113.18]
[1754229988256,3.28,161.42,161.37,116.7]
[1754229989462,9.4766,161.38,161.37,116.7]
[1754229992959,6.1966,161.38,161.37,116.7]
[1754229994365,9.4766,161.38,161.37,116.7]
[1754229999068,6.1963,161.39,161.37,116.7]
[1754229999366,9.4763,161.39,161.38,3.52]
[1754230005284,9.7066,161.38,161.37,113.18]
[1754230006372,9.7066,161.38,161.36,3.38]
[1754230006373,3.51,161.4,161.32,3.38]
[1754230006582,3.51,161.4,161.34,3.38]
[1754230007372,3.51,161.38,161.34,3.38]
[1754230008084,6.1976,161.36,161.34,3.38]
[1754230008377,9.7076,161.36,161.34,3.38]
[1754230009178,6.1978,161.35,161.34,3.38]
[1754230009486,9.7078,161.35,161.34,3.38]
[1754230011885,6.1978,161.35,161.34,3.38]
[1754230012486,3.51,161.4,161.35,3.38]
[1754230012783,6.27273188,161.43,161.34,6.27273188]
[1754230012784,3.51,161.39,161.37,3.38]
[1754230013091,3.51,161.43,161.37,3.38]
[1754230014192,6.1961,161.4,161.37,3.38]
[1754230015086,9.7056,161.41,161.37,9.5768]
[1754230015279,3.51,161.43,161.41,3.38]
[1754230016396,3.51,161.47,161.41,3.38]
[1754230017394,3.51,161.42,161.41,3.38]
[1754230017894,9.705,161.43,161.41,3.38]
[1754230020095,6.1951,161.42,161.41,3.38]
[1754230020296,9.7051,161.42,161.41,3.38]
[1754230021403,9.7048,161.43,161.41,3.38]
[1754230021693,141.25914174,161.49,161.41,3.38]
[1754230021694,6.1943,161.44,161.41,3.38]
[1754230021896,6.1943,161.44,161.42,6.27273188]
[1754230022196,3.51,161.45,161.43,113.16]
[1754230022390,3.51,161.48,161.44,9.65273188]
[1754230022591,3.51,161.48,161.45,3.38]
[1754230022796,9.7034,161.47,161.45,3.38]
[1754230023197,138.49640986,161.49,161.45,3.38]
[1754230023391,134.98640986,161.49,161.45,3.38]
[1754230023587,134.98640986,161.49,161.46,6.27273188]
[1754230023796,138.49640986,161.49,161.47,3.38]
[1754230024298,9.7031,161.48,161.47,3.38]
[1754230026092,3.51,161.48,161.46,113.16]
[1754230026298,6.1932,161.47,161.46,3.38]
[1754230026598,6.1932,161.47,161.46,116.52]
[1754230026599,9.7032,161.47,161.46,116.52]
[1754230028293,9.7032,161.47,161.46,113.14]
[1754230030693,6.1939,161.45,161.44,3.38]
[1754230030893,9.7039,161.45,161.44,3.38]
[1754230031896,9.7043,161.44,161.43,113.14]
[1754230032102,3.51,161.44,161.42,3.38]
[1754230032403,6.1951,161.42,161.41,113.12]
[1754230032700,9.7051,161.42,161.41,113.12]
[1754230034300,9.7051,161.42,161.41,116.39]
[1754230035196,6.1951,161.42,161.41,116.39]
[1754230036912,9.4351,161.42,161.41,116.39]
[1754230040804,6.1951,161.42,161.41,116.39]
[1754230041204,9.4351,161.42,161.41,116.39]
[1754230041504,6.1951,161.42,161.41,116.39]
[1754230041807,9.4348,161.43,161.41,116.39]
[1754230042002,9.4348,161.43,161.42,3.27]
[1754230050116,6.1944,161.44,161.42,3.27]
[1754230050319,3.24,161.49,161.43,3.27]
[1754230050807,3.24,161.49,161.45,3.27]
[1754230052212,6.1935,161.46,161.45,3.27]
[1754230054210,9.4335,161.46,161.45,3.27]
[1754230054718,9.4339,161.45,161.44,113.14]
[1754230054918,3.24,161.44,161.42,116.39]
[1754230055212,3.24,161.44,161.43,3.27]
[1754230055418,6.194,161.45,161.43,3.27]
[1754230055619,6.194,161.45,161.42,113.12]
[1754230055819,9.434,161.45,161.44,3.27]
[1754230056211,6.27273188,161.5,161.44,3.27]
[1754230056515,3.24,161.49,161.45,116.39]
[1754230056718,3.24,161.49,161.45,113.12]
[1754230057313,6.1939,161.46,161.45,113.12]
[1754230057513,3.24,161.46,161.42,3.27]
[1754230057713,3.24,161.46,161.42,116.39]
[1754230057916,6.1947,161.43,161.42,116.39]
[1754230058116,9.4347,161.43,161.42,116.39]
[1754230058318,3.24,161.43,161.42,116.39]
[1754230059214,6.1944,161.44,161.42,113.12]
[1754230059414,6.1944,161.44,161.43,3.27]
[1754230059723,9.4344,161.44,161.43,3.27]
[1754230060918,3.24,161.44,161.43,3.27]
[1754230061222,9.4341,161.45,161.43,3.27]
[1754230062322,9.4343,161.44,161.43,3.27]
[1754230064423,9.5647,161.43,161.42,116.48]
[1754230065423,3.37,161.43,161.42,116.48]
[1754230065617,9.5644,161.44,161.42,116.48]
[1754230065820,9.5644,161.44,161.43,3.36]
[1754230068422,3.37,161.46,161.43,3.36]
[1754230068625,3.37,161.47,161.43,9.63273188]
[1754230068826,3.37,161.47,161.44,3.36]
[1754230069029,3.37,161.47,161.45,113.12]
[1754230069223,3.37,161.47,161.46,3.36]
[1754230069722,3.37,161.47,161.45,113.12]
[1754230069920,3.37,161.46,161.45,113.12]
[1754230070326,9.5635,161.46,161.45,113.12]
[1754230072429,9.5635,161.46,161.45,116.48]
[1754230074133,6.1935,161.46,161.45,116.48]
[1754230076027,9.5635,161.46,161.45,116.48]
[1754230076226,6.1935,161.46,161.45,116.48]